bitfinex-derivatives/quotes_SOLF0:USTF0_20250903
["timestamp","ask_amount","ask_price","bid_price","bid_amount"]
[1756870398540,7.6,210.21,210.12,7.47]
[1756870398743,2.71240696,210.2,210.12,7.47]
[1756870399344,0.03199264,210.18,210.12,7.47]
[1756870401139,7.6,210.17,210.05,0.82829533]
[1756870401343,5.33914987,210.18,210.06,7.47]
[1756870401543,12.90715723,210.2,210.08,7.47]
[1756870401746,0.03524322,210.14,210.08,7.47]
[1756870403446,0.03524322,210.14,210.1,1.74000763]
[1756870403649,0.03524322,210.14,210.11,7.47]
[1756870403944,0.03524322,210.14,210.1,1.74000763]
[1756870404346,0.03524322,210.14,210.11,7.47]
[1756870404848,0.03524322,210.14,210.1,1.74000763]
[1756870405548,0.03524322,210.14,210.11,7.47]
[1756870405739,0.03524322,210.14,210.13,7.47]
[1756870407843,0.03524322,210.14,210.13,9.21000763]
[1756870408550,0.03524322,210.14,210.13,7.47]
[1756870408748,0.03524322,210.14,210.13,9.21000763]
[1756870410847,0.03524322,210.14,210.02,0.82848266]
[1756870411052,0.03524322,210.14,210.12,9.21000763]
[1756870411652,0.03524322,210.14,210.12,1.74000763]
[1756870411952,0.03524322,210.14,210.13,7.47]
[1756870412853,0.03524322,210.14,210.11,7.47]
[1756870413153,0.03524322,210.14,210.1,1.74000763]
[1756870413848,0.03524322,210.14,210.11,7.47]
[1756870414553,0.03524322,210.14,210.13,7.47]
[1756870420156,0.03524322,210.14,210.13,9.21000763]
[1756870431362,7.37,210.25,210.14,7.78]
[1756870431665,7.37,210.25,210.19,1.74000763]
[1756870432266,7.37,210.25,210.17,7.78]
[1756870432267,7.37,210.25,210.21,9.52000763]
[1756870432564,0.03301249,210.24,210.21,9.52000763]
[1756870433865,7.40301249,210.24,210.21,9.52000763]
[1756870435067,7.40301249,210.24,210.22,7.78]
[1756870435264,0.03301249,210.24,210.22,7.78]
[1756870435662,0.03301249,210.24,210.23,1.74000763]
[1756870435868,0.03301249,210.24,210.23,9.52000763]
[1756870436064,7.37,210.31,210.23,1.74000763]
[1756870436368,0.03617119,210.26,210.23,9.52000763]
[1756870436766,0.03617119,210.26,210.25,1.74000763]
[1756870436968,0.03617119,210.26,210.25,9.52000763]
[1756870437669,0.03617119,210.26,210.25,7.78]
[1756870437869,0.03617119,210.26,210.25,9.52000763]
[1756870438464,0.03617119,210.26,210.12,66.6225]
[1756870438465,7.37,210.25,210.18,1.74000763]
[1756870439064,0.03442184,210.24,210.17,7.78]
[1756870439267,0.03442184,210.24,210.18,1.74000763]
[1756870441073,0.03442184,210.24,210.22,1.74000763]
[1756870441275,0.03442184,210.24,210.22,9.52000763]
[1756870441871,0.03442184,210.24,210.22,7.78]
[1756870442074,0.03442184,210.24,210.22,9.52000763]
[1756870442572,0.03442184,210.24,210.23,7.78]
[1756870443464,0.03442184,210.24,210.23,9.52000763]
[1756870443973,0.03442184,210.24,210.15,34.92]
[1756870444173,0.03442184,210.24,210.21,1.74000763]
[1756870444375,7.37,210.23,210.19,1.74000763]
[1756870444579,7.37,210.23,210.19,9.52000763]
[1756870444774,0.03584097,210.23,210.21,1.74000763]
[1756870444974,0.03584097,210.23,210.21,9.52000763]
[1756870445175,0.03584097,210.23,210.22,7.78]
[1756870445975,0.03584097,210.23,210.22,9.52000763]
[1756870453386,7.39,210.22,210.18,7.62]
[1756870453593,0.03584097,210.23,210.19,1.74000763]
[1756870453781,7.39,210.26,210.19,1.74000763]
[1756870453985,0.03317208,210.23,210.19,1.74000763]
[1756870454186,7.39,210.22,210.19,1.74000763]
[1756870454586,7.39,210.22,210.16,1.74000763]
[1756870455188,0.03031131,210.21,210.16,1.74000763]
[1756870455385,7.39,210.2,210.16,1.74000763]
[1756870455891,7.39,210.2,210.17,7.62]
[1756870456590,0.03031131,210.21,210.16,1.74000763]
[1756870456790,7.42031131,210.21,210.17,7.62]
[1756870457585,7.42031131,210.21,210.16,1.74000763]
[1756870457781,7.42031131,210.21,210.17,7.62]
[1756870458587,0.03031131,210.21,210.17,7.62]
[1756870458791,7.39,210.2,210.17,7.62]
[1756870460084,0.03031131,210.21,210.19,7.62]
[1756870460289,0.03031131,210.21,210.2,9.36000763]
[1756870460489,5.30715723,210.26,210.2,9.36000763]
[1756870460786,7.42244744,210.23,210.2,9.36000763]
[1756870461191,7.39,210.22,210.18,9.36000763]
[1756870461592,7.39,210.23,210.16,1.74000763]
[1756870461793,0.03200589,210.22,210.19,7.62]
[1756870463093,0.03200589,210.22,210.18,1.74000763]
[1756870463395,0.03200589,210.22,210.2,1.74000763]
[1756870463590,0.03200589,210.22,210.21,7.62]
[1756870463991,0.03200589,210.22,210.21,9.36000763]
[1756870465595,0.03200589,210.22,210.21,7.62]
[1756870473303,5.30715723,210.31,210.21,8.1]
[1756870473503,12.69715723,210.33,210.26,2.71578936]
[1756870474801,12.69715723,210.33,210.27,0.03298924]
[1756870476208,5.30715723,210.32,210.27,0.03298924]
[1756870477704,7.39,210.31,210.27,0.03298924]
[1756870477907,5.30715723,210.32,210.27,0.03298924]
[1756870478702,7.39,210.31,210.27,0.03298924]
[1756870478902,5.30715723,210.32,210.28,7.62]
[1756870479208,7.39,210.32,210.27,2.7487786]
[1756870479406,7.39,210.32,210.28,7.62]
[1756870479605,7.39,210.32,210.27,2.7487786]
[1756870480610,7.39,210.32,210.28,7.62]
[1756870480810,7.39,210.32,210.27,2.7487786]
[1756870481005,12.69715723,210.32,210.28,7.62]
[1756870481200,12.69715723,210.32,210.27,2.7487786]
[1756870481405,5.30715723,210.32,210.27,2.7487786]
[1756870481906,5.30715723,210.32,210.28,7.4]
[1756870482605,5.30715723,210.32,210.27,2.7487786]
[1756870482606,5.30715723,210.29,210.27,0.03298924]
[1756870482807,7.31,210.28,210.27,0.03298924]
[1756870483203,10.50578936,210.28,210.16,10.11578936]
[1756870483509,7.31,210.23,210.16,10.11578936]
[1756870484612,0.03114336,210.22,210.16,7.4]
[1756870486206,0.03114336,210.22,210.06,4.82791016]
[1756870486410,0.03114336,210.22,210.07,10.11578936]
[1756870486411,7.31,210.18,210.07,10.11578936]
[1756870486813,0.03158458,210.15,210.07,10.11578936]
[1756870489006,0.03158458,210.15,210.11,7.4]
[1756870489412,0.03158458,210.15,210.1,2.71578936]
[1756870489815,0.03158458,210.15,210.11,7.4]
[1756870490515,0.03158458,210.15,210.14,7.4]
[1756870491013,7.31,210.25,210.14,7.4]
[1756870491313,7.31,210.25,210.13,2.71578936]
[1756870491314,7.31,210.25,210.17,7.4]
[1756870492416,7.31,210.25,210.19,0.03182075]
[1756870492812,5.27478,210.28,210.19,0.03182075]
[1756870493116,10.02578936,210.29,210.2,7.4]
[1756870493620,15.30056936,210.29,210.2,7.4]
[1756870493812,10.02578936,210.29,210.2,7.4]
[1756870494312,10.02578936,210.29,210.19,0.03182075]
[1756870494515,15.30056936,210.29,210.19,0.03182075]
[1756870494712,7.31,210.25,210.19,0.03182075]
[1756870495316,7.31,210.22,210.19,0.03182075]
[1756870496217,2.71578936,210.23,210.19,0.03182075]
[1756870496716,7.31,210.22,210.19,0.03182075]
[1756870497417,7.31,210.25,210.19,0.03182075]
[1756870498712,10.02578936,210.25,210.19,0.03182075]
[1756870502216,7.31,210.25,210.19,0.03182075]
[1756870502716,44.32,210.29,210.19,0.03182075]
[1756870502717,7.31,210.2,210.19,0.03182075]
[1756870504815,2.71578936,210.25,210.19,7.43182075]
[1756870505221,2.71578936,210.25,210.19,7.4]
[1756870505621,2.71578936,210.25,210.2,0.03219107]
[1756870506017,7.31,210.24,210.2,0.03219107]
[1756870506218,7.31,210.21,210.2,0.03219107]
[1756870506417,7.31,210.21,210.06,0.82800956]
[1756870506619,7.31,210.17,210.07,7.4]
[1756870507517,0.03082945,210.14,210.07,7.4]
[1756870508926,0.03082945,210.14,210.07,10.11578936]
[1756870509125,0.03082945,210.14,210.08,7.4]
[1756870513023,0.03082945,210.14,210.1,2.71578936]
[1756870513228,0.03082945,210.14,210.11,7.63]
[1756870515826,0.03082945,210.14,210.13,2.71578936]
[1756870516029,0.03082945,210.14,210.13,10.34578936]
[1756870517635,0.03082945,210.14,210.13,7.63]
[1756870518332,0.03082945,210.14,210.07,7.63]
[1756870519031,0.03082945,210.14,210.07,10.34578936]
[1756870521332,0.03082945,210.14,210.1,2.71578936]
[1756870521533,0.03082945,210.14,210.11,7.63]
[1756870521739,7.31,210.13,210.03,7.63]
[1756870522439,0.03285467,210.1,210.03,7.63]
[1756870525542,0.03285467,210.1,210.06,7.63]
[1756870525846,0.03285467,210.1,210.05,1.74073741]
[1756870526547,0.03285467,210.1,210.06,7.63]
[1756870527047,0.03285467,210.1,210.05,1.74073741]
[1756870527443,0.03285467,210.1,210.06,7.63]
[1756870527947,0.03285467,210.1,210.04,1.74073741]
[1756870528348,0.03285467,210.1,210.04,9.37073741]
[1756870530949,0.03285467,210.1,210.04,7.63]
[1756870531149,0.03285467,210.1,210.04,9.37073741]
[1756870534054,3.61870803,210.09,210.05,7.63]
[1756870534352,3.61870803,210.08,210.04,1.74073741]
[1756870534552,3.61870803,210.07,210.04,1.74073741]
[1756870534745,0.03285467,210.1,210.05,7.63]
[1756870534946,3.61882842,210.09,210.04,1.74073741]
[1756870535144,3.61882842,210.08,210.05,7.63]
[1756870535352,3.61882842,210.07,210.04,1.74073741]
[1756870535648,0.03285467,210.1,210.05,7.63]
[1756870535856,3.61946315,210.09,210.04,1.74073741]
[1756870536155,3.61946315,210.08,210.05,7.63]
[1756870536355,3.61946315,210.07,210.04,1.74073741]
[1756870536552,3.61946315,210.06,210.05,7.63]
[1756870539856,10.92946315,210.06,210.02,7.63]
[1756870540152,3.61946315,210.05,209.99,1.74073741]
[1756870540354,10.92946315,210.04,210.0,7.63]
[1756870540651,12.67020056,210.03,209.95,9.37073741]
[1756870540851,9.05073741,210.03,209.95,9.37073741]
[1756870541252,0.03570242,210.01,209.95,9.37073741]
[1756870542258,0.03570242,210.01,209.95,7.63]
[1756870542458,0.03570242,210.01,209.95,9.37073741]
[1756870542954,0.03570242,210.01,209.97,1.74073741]
[1756870543157,0.03570242,210.01,209.98,7.66]
[1756870543554,0.03570242,210.01,209.97,1.74073741]
[1756870543555,7.54570242,210.01,209.93,7.66]
[1756870543751,7.54570242,210.01,209.94,1.74073741]
[1756870545159,7.54570242,210.01,209.93,7.66]
[1756870545459,7.54570242,210.01,209.94,1.74073741]
[1756870546155,1.74073741,210.0,209.93,7.66]
[1756870546355,0.03570242,210.01,209.9,7.66]
[1756870546356,7.51,209.97,209.9,7.66]
[1756870546558,7.51,209.97,209.91,1.74073741]
[1756870546957,0.03454576,209.96,209.9,7.66]
[1756870547259,7.54454576,209.96,209.92,7.66]
[1756870547461,7.51,209.95,209.92,7.66]
[1756870548259,7.54454576,209.96,209.89,2.56976283]
[1756870548462,7.54454576,209.96,209.89,0.82902542]
[1756870548662,7.54454576,209.96,209.89,2.56976283]
[1756870549163,7.54454576,209.96,209.89,0.82902542]
[1756870549463,7.54454576,209.96,209.89,1.74073741]
[1756870549663,7.54454576,209.96,209.88,7.66]
[1756870549863,9.28528317,209.96,209.88,9.40073741]
[1756870550759,7.54454576,209.96,209.88,9.40073741]
[1756870551254,7.51,209.91,209.81,1.74073741]
[1756870551460,7.51,209.91,209.83,9.40073741]
[1756870551662,7.51,209.91,209.83,7.66]
[1756870551958,0.03652262,209.89,209.83,9.40073741]
[1756870552355,0.03652262,209.89,209.83,7.66]
[1756870552761,0.03652262,209.89,209.82,19.0]
[1756870552762,0.03652262,209.89,209.88,7.66]
[1756870553062,0.03652262,209.89,209.88,9.40073741]
[1756870557367,0.03652262,209.89,209.88,7.66]
[1756870560773,7.51,209.97,209.88,8.14]
[1756870560974,7.51,209.97,209.94,1.74073741]
[1756870561372,7.51,210.06,209.91,7.66]
[1756870561572,7.51,210.0,209.94,1.74073741]
[1756870561772,7.51,210.0,209.94,9.40073741]
[1756870561969,7.51,210.0,209.96,9.40073741]
[1756870562470,7.51,210.04,209.98,1.74073741]
[1756870562669,7.51,210.08,210.01,9.40073741]
[1756870562869,293.42,210.1,210.03,1.74073741]
[1756870563072,7.51,210.09,210.03,1.74073741]
[1756870563266,293.42,210.1,210.04,0.03218986]
[1756870563769,7.51,210.09,210.04,0.03218986]
[1756870563972,7.51,210.05,210.04,0.03218986]
[1756870566674,7.51,210.05,209.85,7.66]
[1756870566871,9.25073741,210.05,209.97,1.74073741]
[1756870567875,0.03099911,210.03,209.97,1.74073741]
[1756870568276,7.54099911,210.03,209.97,1.74073741]
[1756870569980,0.03099911,210.03,210.01,1.74073741]
[1756870570173,0.03099911,210.03,210.02,7.66]
[1756870570374,7.51,210.07,210.02,7.66]
[1756870570575,7.51,210.07,210.05,1.74073741]
[1756870570974,0.03366223,210.07,210.05,1.74073741]
[1756870571375,7.82,210.06,210.04,1.74073741]
[1756870571876,2.22073741,210.05,209.87,7.81]
[1756870572181,1.74073741,209.99,209.91,9.55073741]
[1756870572375,7.82,209.98,209.91,1.74073741]
[1756870572569,9.59489665,209.98,209.91,1.74073741]
[1756870572977,7.85415924,209.98,209.91,1.74073741]
[1756870573880,7.85415924,209.98,209.91,9.55073741]
[1756870574979,7.85415924,209.98,209.91,1.74073741]
[1756870575182,9.59489665,209.98,209.91,1.74073741]
[1756870576876,7.85415924,209.98,209.91,1.74073741]
[1756870577278,7.85415924,209.98,209.9,7.81]
[1756870577483,7.85415924,209.98,209.91,1.74073741]
[1756870579079,1.74073741,209.95,209.85,7.81]
[1756870579283,7.82,209.94,209.87,1.74073741]
[1756870579479,7.82,209.94,209.85,9.55073741]
[1756870579678,7.85388373,209.92,209.87,9.55073741]
[1756870580583,7.82,209.91,209.87,9.55073741]
[1756870580779,7.82,209.91,209.87,7.81]
[1756870580975,0.03388373,209.92,209.86,1.74073741]
[1756870582882,0.03388373,209.92,209.88,1.74073741]
[1756870583185,0.03388373,209.92,209.88,9.55073741]
[1756870583684,7.82,209.91,209.88,1.74073741]
[1756870584187,0.03388373,209.92,209.88,1.74073741]
[1756870584583,0.03388373,209.92,209.88,9.55073741]
[1756870585989,0.03388373,209.92,209.88,7.81]
[1756870586887,0.03388373,209.92,209.87,1.74073741]
[1756870587086,0.03388373,209.92,209.88,7.81]
[1756870587592,7.85388373,209.92,209.85,2.72444367]
[1756870588090,7.85388373,209.92,209.86,7.81]
[1756870589591,7.85388373,209.92,209.82,10.53444367]
[1756870589887,7.85388373,209.92,209.8,0.82941071]
[1756870589888,7.82,209.91,209.79,7.81]
[1756870590092,7.82,209.91,209.8,2.72444367]
[1756870590594,0.03231106,209.88,209.8,2.72444367]
[1756870590995,0.03231106,209.88,209.81,7.81]
[1756870593186,0.03231106,209.88,209.78,7.81]
[1756870593384,0.03231106,209.88,209.83,2.72444367]
[1756870593592,0.03231106,209.88,209.82,7.81]
[1756870594702,0.03231106,209.88,209.82,10.53444367]
[1756870594900,0.03231106,209.88,209.83,7.81]
[1756870595892,0.03231106,209.88,209.82,2.72444367]
[1756870596101,0.03231106,209.88,209.83,7.81]
[1756870596396,0.03231106,209.88,209.85,2.72444367]
[1756870596896,0.03231106,209.88,209.86,7.81]
[1756870597293,0.03231106,209.88,209.85,2.72444367]
[1756870597600,0.03231106,209.88,209.86,7.81]
[1756870597801,0.03231106,209.88,209.85,2.72444367]
[1756870597998,0.03231106,209.88,209.86,7.81]
[1756870598201,0.03231106,209.88,209.85,2.72444367]
[1756870599498,0.03231106,209.88,209.86,7.81]
[1756870599802,0.03231106,209.88,209.85,2.72444367]
[1756870600198,0.03231106,209.88,209.86,7.81]
[1756870600497,0.03231106,209.88,209.85,2.72444367]
[1756870600901,0.03231106,209.88,209.86,7.81]
[1756870601301,0.03231106,209.88,209.86,7.93]
[1756870602204,0.03231106,209.88,209.8,120.3]
[1756870602510,0.03231106,209.88,209.85,7.93]
[1756870602705,0.03231106,209.88,209.84,2.72444367]
[1756870603101,0.03231106,209.88,209.85,7.93]
[1756870603507,7.29,209.87,209.81,7.93]
[1756870606007,7.29,209.87,209.78,7.93]
[1756870606209,7.29,209.87,209.78,10.65444367]
[1756870607613,0.03231106,209.88,209.79,7.93]
[1756870609208,0.03231106,209.88,209.79,10.65444367]
[1756870609717,0.03231106,209.88,209.82,10.65444367]
[1756870611411,0.03231106,209.88,209.85,2.72444367]
[1756870611614,0.03231106,209.88,209.86,7.93]
[1756870611812,0.03231106,209.88,209.85,2.72444367]
[1756870613212,0.03231106,209.88,209.86,7.93]
[1756870615110,0.03231106,209.88,209.85,2.72444367]
[1756870615416,0.03231106,209.88,209.78,8.26187643]
[1756870615607,0.03231106,209.88,209.85,2.72444367]
[1756870615916,0.03231106,209.88,209.86,7.93]
[1756870616209,0.03231106,209.88,209.85,2.72444367]
[1756870616415,0.03231106,209.88,209.86,7.93]
[1756870616911,0.03231106,209.88,209.85,2.72444367]
[1756870617915,0.03231106,209.88,209.86,7.93]
[1756870618117,0.03231106,209.88,209.85,2.72444367]
[1756870618316,0.03231106,209.88,209.86,7.93]
[1756870618911,0.03231106,209.88,209.85,2.72444367]
[1756870620111,0.03231106,209.88,209.86,7.93]
[1756870620310,7.29,209.97,209.86,7.93]
[1756870620509,11.3,210.04,209.9,2.72444367]
[1756870620510,5.27478,210.0,209.9,2.72444367]
[1756870620718,7.29,210.01,209.94,7.93]
[1756870621212,5.27478,210.04,209.96,2.72444367]
[1756870621413,12.56478,210.05,209.97,7.93]
[1756870621818,7.29,210.05,209.99,0.03190458]
[1756870622017,12.56478,210.05,209.99,0.03190458]
[1756870622220,7.29,210.05,209.99,0.03190458]
[1756870623214,5.27478,210.07,209.99,7.96190458]
[1756870623522,12.56478,210.08,209.99,7.96190458]
[1756870624221,7.29,210.08,209.99,7.96190458]
[1756870625217,7.29,210.12,210.04,2.72444367]
[1756870625820,7.29,210.12,210.06,0.03007386]
[1756870626321,7.29,210.12,210.07,2.72444367]
[1756870626522,7.29,210.12,210.07,10.65444367]
[1756870626714,7.29,210.15,210.07,10.65444367]
[1756870629818,7.29,210.15,210.07,7.93]
[1756870630019,7.29,210.15,210.06,0.03007386]
[1756870631127,7.29,210.13,210.06,0.03007386]
[1756870631522,7.77,210.13,210.06,0.03007386]
[1756870634124,2.72444367,210.09,209.91,7.62]
[1756870634425,7.59,210.08,209.94,2.72444367]
[1756870634629,7.59,210.06,209.94,2.72444367]
[1756870635023,12.02,210.06,209.94,10.34444367]
[1756870635223,7.59,210.05,209.94,10.34444367]
[1756870635423,7.59,210.01,209.94,10.34444367]
[1756870637427,7.59,210.01,209.94,7.62]
[1756870641122,10.31444367,210.01,209.79,48.15348575]
[1756870641328,7.59,210.0,209.86,2.72444367]
[1756870641527,7.59,210.0,209.86,10.34444367]
[1756870641826,0.03413229,209.95,209.86,10.34444367]
[1756870645036,0.03413229,209.95,209.87,7.62]
[1756870645429,0.03413229,209.95,209.89,2.72444367]
[1756870645837,7.59,209.97,209.9,7.62]
[1756870646031,0.03314049,209.94,209.9,7.62]
[1756870646533,0.03314049,209.94,209.89,2.72444367]
[1756870647131,0.03314049,209.94,209.9,7.62]
[1756870647333,0.03314049,209.94,209.89,2.72444367]
[1756870647530,0.03314049,209.94,209.91,1.74310934]
[1756870647736,0.03314049,209.94,209.92,7.62]
[1756870647932,0.03314049,209.94,209.91,1.74310934]
[1756870648234,0.03314049,209.94,209.93,9.36310934]
[1756870648630,7.59,210.01,209.93,9.36310934]
[1756870648836,0.03425003,209.96,209.95,1.74310934]
[1756870649036,0.03425003,209.96,209.95,9.36310934]
[1756870658045,7.59,210.04,209.95,9.36310934]
[1756870658343,7.59,210.05,210.03,1.74310934]
[1756870658546,5.27478,210.12,210.03,1.74310934]
[1756870658547,9.33310934,210.12,210.03,1.74310934]
[1756870658841,9.33310934,210.12,209.91,66.6893]
[1756870658842,9.33310934,210.12,210.05,1.74310934]
[1756870659342,9.33310934,210.12,210.05,1.77845499]
[1756870660744,7.59,210.12,210.05,1.77845499]
[1756870664743,7.59,210.12,210.07,1.74310934]
[1756870664944,7.71,210.13,210.07,1.74310934]
[1756870666449,7.71,210.13,210.05,9.42845499]
[1756870666650,7.71,210.13,210.09,1.74310934]
[1756870667150,7.71,210.13,210.11,1.74310934]
[1756870667350,7.71,210.18,210.11,1.74310934]
[1756870667849,7.71,210.18,210.12,0.03413348]
[1756870670451,7.71,210.18,210.13,1.74310934]
[1756870671246,293.58,210.19,210.13,1.74310934]
[1756870671447,7.71,210.18,210.13,1.74310934]
[1756870671652,293.58,210.19,210.13,1.74310934]
[1756870672247,7.71,210.18,210.13,1.74310934]
[1756870672546,7.71,210.18,210.15,1.74310934]
[1756870672746,7.71,210.24,210.17,1.74310934]
[1756870673348,7.71,210.22,210.18,0.03337457]
[1756870673544,1.74310934,210.21,210.18,0.03337457]
[1756870673742,7.71,210.18,210.12,1.74310934]
[1756870673945,7.71,210.18,210.17,0.03318614]
[1756870675552,8.19,210.18,210.1,1.74310934]
[1756870675752,7.71,210.16,210.1,1.74310934]
[1756870676654,0.03578386,210.15,210.1,1.74310934]
[1756870676953,7.71,210.14,210.1,9.39310934]
[1756870677552,7.71,210.14,210.12,1.74310934]
[1756870677752,0.03578386,210.15,210.12,1.74310934]
[1756870678148,7.74578386,210.15,210.12,1.74310934]
[1756870679353,0.03578386,210.15,210.1,1.74310934]
[1756870679553,7.71,210.14,210.1,1.74310934]
[1756870679751,7.71,210.14,210.05,7.65]
[1756870680055,7.71,210.14,210.1,1.74310934]
[1756870680651,7.74106948,210.14,210.07,9.39310934]
[1756870680855,1.74310934,210.13,210.07,7.65]
[1756870681447,7.74106948,210.14,210.07,7.65]
[1756870681448,7.74106948,210.14,210.07,9.39310934]
[1756870681854,7.74106948,210.14,210.07,7.65]
[1756870682253,1.74310934,210.13,210.07,7.65]
[1756870683559,1.74310934,210.09,210.07,7.65]
[1756870686661,1.74310934,210.09,209.91,19.16]
[1756870686662,1.74310934,210.09,209.85,293.32]
[1756870686962,7.71,210.0,209.92,1.74310934]
[1756870687364,0.03463066,209.99,209.92,1.74310934]
[1756870687560,0.03463066,209.99,209.94,1.74310934]
[1756870687956,7.71,210.0,209.94,1.74310934]
[1756870688162,0.03639218,209.99,209.94,1.74310934]
[1756870688868,7.74639218,209.99,209.95,7.0]
[1756870689060,7.74639218,209.99,209.94,1.74310934]
[1756870689660,0.03639218,209.99,209.94,1.74310934]
[1756870689967,0.03639218,209.99,209.95,7.0]
[1756870690266,0.03639218,209.99,209.86,7.0]
[1756870690465,0.03639218,209.99,209.94,7.0]
[1756870690666,9.45310934,210.02,209.93,8.74310934]
[1756870690861,0.03473558,209.99,209.93,8.74310934]
[1756870692270,7.65473558,209.99,209.93,7.0]
[1756870694169,7.65473558,209.99,209.93,8.74310934]
[1756870696573,0.03473558,209.99,209.96,7.0]
[1756870696774,0.03473558,209.99,209.95,1.74310934]
[1756870696974,0.03473558,209.99,209.8,7.0]
[1756870696975,7.62,209.98,209.8,7.0]
[1756870697275,7.62,209.95,209.89,1.74310934]
[1756870697574,7.62,209.95,209.88,1.74310934]
[1756870697768,1.7795269,209.94,209.86,7.0]
[1756870697968,7.62,209.93,209.86,8.74310934]
[1756870699372,7.62,209.93,209.86,7.0]
[1756870699573,7.62,209.93,209.87,1.74310934]
[1756870700273,7.62,209.93,209.8,7.0]
[1756870700469,7.62,209.93,209.85,1.74310934]
[1756870700676,7.62,209.93,209.83,7.0]
[1756870700877,0.03173514,209.91,209.84,1.74310934]
[1756870701274,7.62,209.9,209.84,1.74310934]
[1756870703282,7.62,209.9,209.83,7.0]
[1756870703581,7.62,209.9,209.84,1.74310934]
[1756870703782,7.62,209.9,209.83,7.0]
[1756870703982,7.62,209.9,209.83,8.74310934]
[1756870706682,9.36310934,209.9,209.83,8.74310934]
[1756870707484,9.36310934,209.9,209.83,7.0]
[1756870708386,7.62,209.9,209.84,1.74310934]
[1756870709582,7.62,209.9,209.83,7.0]
[1756870709790,0.03173514,209.91,209.83,7.0]
[1756870709983,7.65173514,209.91,209.85,7.0]
[1756870710384,7.62,209.91,209.85,7.0]
[1756870710685,0.03485164,209.9,209.85,7.0]
[1756870710882,0.03485164,209.9,209.84,2.72555586]
[1756870711188,0.03485164,209.9,209.84,9.72555586]
[1756870711585,0.03485164,209.9,209.84,2.72555586]
[1756870712289,0.03485164,209.9,209.85,7.0]
[1756870712487,0.03485164,209.9,209.84,2.72555586]
[1756870712688,0.03485164,209.9,209.85,7.0]
[1756870712988,0.03485164,209.9,209.84,2.72555586]
[1756870713183,0.03485164,209.9,209.85,7.0]
[1756870713583,0.03485164,209.9,209.84,2.72555586]
[1756870714489,0.03485164,209.9,209.85,7.0]
[1756870714891,0.03485164,209.9,209.84,2.72555586]
[1756870715188,0.03485164,209.9,209.85,7.0]
[1756870715583,0.03485164,209.9,209.88,7.0]
[1756870715791,0.03485164,209.9,209.87,2.72555586]
[1756870715989,7.62,209.95,209.88,7.0]
[1756870716184,0.03330207,209.91,209.88,7.0]
[1756870716391,0.03330207,209.91,209.87,2.72555586]
[1756870716690,7.62,209.97,209.88,7.0]
[1756870716890,0.03020836,209.91,209.88,7.0]
[1756870717087,0.03020836,209.91,209.87,2.72555586]
[1756870717493,0.03020836,209.91,209.88,7.0]
[1756870718089,0.03020836,209.91,209.87,2.72555586]
[1756870718490,0.03020836,209.91,209.88,7.0]
[1756870718788,0.03020836,209.91,209.87,2.72555586]
[1756870719291,0.03020836,209.91,209.88,7.0]
[1756870719796,0.03020836,209.91,209.87,2.72555586]
[1756870720796,0.03020836,209.91,209.88,7.0]
[1756870721196,0.03020836,209.91,209.87,2.72555586]
[1756870721595,0.03020836,209.91,209.88,7.0]
[1756870721803,0.03020836,209.91,209.87,2.72555586]
[1756870722397,0.03020836,209.91,209.88,7.0]
[1756870722599,0.03020836,209.91,209.87,2.72555586]
[1756870722792,7.53,209.9,209.81,7.0]
[1756870723099,7.53,209.9,209.67,66.7649]
[1756870723100,7.53,209.9,209.78,7.0]
[1756870723598,7.53,209.9,209.77,7.0]
[1756870723898,7.56487247,209.86,209.77,7.0]
[1756870725301,7.56487247,209.86,209.76,2.72555586]
[1756870725600,7.56487247,209.86,209.76,9.72555586]
[1756870726400,7.53,209.85,209.76,9.72555586]
[1756870726794,7.53,209.85,209.76,2.72555586]
[1756870726998,7.53,209.85,209.77,7.0]
[1756870740211,2.72555586,209.84,209.71,7.0]
[1756870740513,7.53,209.83,209.73,7.0]
[1756870740816,0.0341698,209.8,209.73,7.0]